Workbook

Sheet Sheet1
A1: Present cost of your goal | B1: 1000000 | E1: 2871486.409 | F1: =XIRR(I1:I368,H1:H368) -> 0.1198836029 | G1: 1 | H1: =TODAY() -> 2015-08-05 | I1: =IF(H1=0,0,IF(G1<>"",-$B$5*$B$7,$E$1)) -> -6000 | J1: =IF(H1=0,0,IF(G1<>"",-$B$5*$B$8,$E$2)) -> -4000 | K1: =IF(H1=0,0,IF(G1<>"",I1+J1,$E$1+$E$2)) -> -10000 | L1: =IF(H1=0,0,IF(G1<>"",I1+J1,$E$4)) -> -10000 | M1: =INT(G1/12)-(G1/12) -> -0.08333333333
A2: How many years later do you need the money | B2: 15 | E2: 1459313.961 | F2: =XIRR(J1:J368,H1:H368) -> 0.06946589649 | G2: =IF(G1>=$B$9*12,"",G1+1) -> 2 | H2: =IF(G1<>"",H1+30,0) -> 2015-09-04 | I2: =IF(H2=0,0,IF(G2<>"",IF(M1=0,I1*(1+$B$6),I1),$E$1)) -> -6000 | J2: =IF(H2=0,0,IF(G2<>"",IF(M1=0,J1*(1+$B$6),J1),$E$2)) -> -4000 | K2: =IF(H2=0,0,IF(G2<>"",I2+J2,$E$1+$E$2)) -> -10000 | L2: =IF(H2=0,0,IF(G2<>"",I2+J2,$E$4)) -> -10000 | M2: =IF(G1>=$B$9*12,"",INT(G2/12)-(G2/12)) -> -0.1666666667
A3: Inflation | B3: 0.1 | F3: =XIRR(K1:K368,H1:H368) -> 0.1015853941 | G3: =IF(G2>=$B$9*12,"",G2+1) -> 3 | H3: =IF(G2<>"",H2+30,0) -> 2015-10-04 | I3: -6000 | J3: =IF(H3=0,0,IF(G3<>"",IF(M2=0,J2*(1+$B$6),J2),$E$2)) -> -4000 | K3: -10000 | L3: -10000 | M3: =IF(G2>=$B$9*12,"",INT(G3/12)-(G3/12)) -> -0.25
A4: Future cost of your goal | B4: =B1*(1+B3)^B2 -> 4177248.169 | E4: 1028135.556 | F4: =XIRR(L1:L368,H1:H368) -> 2.980232239e-09 | G4: =IF(G3>=$B$9*12,"",G3+1) -> 4 | H4: 2015-11-03 | I4: -6000 | J4: -4000 | K4: -10000 | L4: -10000 | M4: -0.3333333333
A5: Amount that you can invest each month | B5: 10000 | G5: =IF(G4>=$B$9*12,"",G4+1) -> 5 | H5: 2015-12-03 | I5: -6000 | J5: -4000 | K5: -10000 | L5: -10000 | M5: -0.4166666667
A6: Rate at which you can increase this amt each year | B6: 0.1 | G6: =IF(G5>=$B$9*12,"",G5+1) -> 6 | H6: 2016-01-02 | I6: -6000 | J6: -4000 | K6: -10000 | L6: -10000 | M6: -0.5
A7: Allocation to equity | B7: 0.6 | G7: =IF(G6>=$B$9*12,"",G6+1) -> 7 | H7: 2016-02-01 | I7: -6000 | J7: -4000 | K7: -10000 | L7: -10000 | M7: -0.5833333333
A8: Allocaion to debt | B8: =1-B7 -> 0.4 | G8: =IF(G7>=$B$9*12,"",G7+1) -> 8 | H8: 2016-03-02 | I8: -6000 | J8: -4000 | K8: -10000 | L8: -10000 | M8: -0.6666666667
A9: Years you would like to invest with this allocation | B9: 12 | C9: =CONCATENATE("Should be less than or equal to ",B2," years*") -> Should be less than or equal to 15 years* | G9: =IF(G8>=$B$9*12,"",G8+1) -> 9 | H9: 2016-04-01 | I9: -6000 | J9: -4000 | K9: -10000 | L9: -10000 | M9: -0.75
A10: Expected XIRR from equity | B10: 0.12 | C10: * This can be | G10: =IF(G9>=$B$9*12,"",G9+1) -> 10 | H10: 2016-05-01 | I10: -6000 | J10: -4000 | K10: -10000 | L10: -10000 | M10: -0.8333333333
A11: Expected post-tax XIRR from debt | B11: 0.07 | G11: =IF(G10>=$B$9*12,"",G10+1) -> 11 | H11: 2016-05-31 | I11: -6000 | J11: -4000 | K11: -10000 | L11: -10000 | M11: -0.9166666667
G12: =IF(G11>=$B$9*12,"",G11+1) -> 12 | H12: 2016-06-30 | I12: =IF(H12=0,0,IF(G12<>"",IF(M11=0,I11*(1+$B$6),I11),$E$1)) -> -6000 | J12: -4000 | K12: -10000 | L12: -10000 | M12: 0
A13: Corpus from equity | B13: 2871486.409 | G13: =IF(G12>=$B$9*12,"",G12+1) -> 13 | H13: 2016-07-30 | I13: =IF(H13=0,0,IF(G13<>"",IF(M12=0,I12*(1+$B$6),I12),$E$1)) -> -6600 | J13: -4400 | K13: -11000 | L13: -11000 | M13: -0.08333333333
A14: Corpus from debt | B14: 1459313.961 | G14: =IF(G13>=$B$9*12,"",G13+1) -> 14 | H14: 2016-08-29 | I14: =IF(H14=0,0,IF(G14<>"",IF(M13=0,I13*(1+$B$6),I13),$E$1)) -> -6600 | J14: -4400 | K14: -11000 | L14: -11000 | M14: -0.1666666667
A15: Total Corpus | B15: =B13+B14 -> 4330800.369 | C15: Adjust until this turns green | G15: =IF(G14>=$B$9*12,"",G14+1) -> 15 | H15: 2016-09-28 | I15: =IF(H15=0,0,IF(G15<>"",IF(M14=0,I14*(1+$B$6),I14),$E$1)) -> -6600 | J15: -4400 | K15: -11000 | L15: -11000 | M15: -0.25
A16: Net portfolio XIRR | B16: 0.1015853941 | G16: =IF(G15>=$B$9*12,"",G15+1) -> 16 | H16: 2016-10-28 | I16: -6600 | J16: -4400 | K16: -11000 | L16: -11000 | M16: -0.3333333333
G17: =IF(G16>=$B$9*12,"",G16+1) -> 17 | H17: 2016-11-27 | I17: -6600 | J17: -4400 | K17: -11000 | L17: -11000 | M17: -0.4166666667
G18: =IF(G17>=$B$9*12,"",G17+1) -> 18 | H18: 2016-12-27 | I18: -6600 | J18: -4400 | K18: -11000 | L18: -11000 | M18: -0.5
G19: =IF(G18>=$B$9*12,"",G18+1) -> 19 | H19: 2017-01-26 | I19: -6600 | J19: -4400 | K19: -11000 | L19: -11000 | M19: -0.5833333333
G20: =IF(G19>=$B$9*12,"",G19+1) -> 20 | H20: 2017-02-25 | I20: -6600 | J20: -4400 | K20: -11000 | L20: -11000 | M20: -0.6666666667
G21: =IF(G20>=$B$9*12,"",G20+1) -> 21 | H21: 2017-03-27 | I21: -6600 | J21: -4400 | K21: -11000 | L21: -11000 | M21: -0.75
G22: =IF(G21>=$B$9*12,"",G21+1) -> 22 | H22: 2017-04-26 | I22: -6600 | J22: -4400 | K22: -11000 | L22: -11000 | M22: -0.8333333333
G23: =IF(G22>=$B$9*12,"",G22+1) -> 23 | H23: 2017-05-26 | I23: -6600 | J23: -4400 | K23: -11000 | L23: -11000 | M23: -0.9166666667
G24: =IF(G23>=$B$9*12,"",G23+1) -> 24 | H24: 2017-06-25 | I24: -6600 | J24: -4400 | K24: -11000 | L24: -11000 | M24: 0
G25: =IF(G24>=$B$9*12,"",G24+1) -> 25 | H25: 2017-07-25 | I25: -7260 | J25: -4840 | K25: -12100 | L25: -12100 | M25: -0.08333333333
G26: =IF(G25>=$B$9*12,"",G25+1) -> 26 | H26: 2017-08-24 | I26: -7260 | J26: -4840 | K26: -12100 | L26: -12100 | M26: -0.1666666667
G27: =IF(G26>=$B$9*12,"",G26+1) -> 27 | H27: 2017-09-23 | I27: -7260 | J27: -4840 | K27: -12100 | L27: -12100 | M27: -0.25
G28: =IF(G27>=$B$9*12,"",G27+1) -> 28 | H28: 2017-10-23 | I28: -7260 | J28: -4840 | K28: -12100 | L28: -12100 | M28: -0.3333333333
G29: =IF(G28>=$B$9*12,"",G28+1) -> 29 | H29: 2017-11-22 | I29: -7260 | J29: -4840 | K29: -12100 | L29: -12100 | M29: -0.4166666667
G30: =IF(G29>=$B$9*12,"",G29+1) -> 30 | H30: 2017-12-22 | I30: -7260 | J30: -4840 | K30: -12100 | L30: -12100 | M30: -0.5
G31: =IF(G30>=$B$9*12,"",G30+1) -> 31 | H31: 2018-01-21 | I31: -7260 | J31: -4840 | K31: -12100 | L31: -12100 | M31: -0.5833333333
G32: =IF(G31>=$B$9*12,"",G31+1) -> 32 | H32: 2018-02-20 | I32: -7260 | J32: -4840 | K32: -12100 | L32: -12100 | M32: -0.6666666667
G33: =IF(G32>=$B$9*12,"",G32+1) -> 33 | H33: 2018-03-22 | I33: -7260 | J33: -4840 | K33: -12100 | L33: -12100 | M33: -0.75
G34: =IF(G33>=$B$9*12,"",G33+1) -> 34 | H34: 2018-04-21 | I34: -7260 | J34: -4840 | K34: -12100 | L34: -12100 | M34: -0.8333333333
G35: =IF(G34>=$B$9*12,"",G34+1) -> 35 | H35: 2018-05-21 | I35: -7260 | J35: -4840 | K35: -12100 | L35: -12100 | M35: -0.9166666667
G36: =IF(G35>=$B$9*12,"",G35+1) -> 36 | H36: 2018-06-20 | I36: -7260 | J36: -4840 | K36: -12100 | L36: -12100 | M36: 0
G37: =IF(G36>=$B$9*12,"",G36+1) -> 37 | H37: 2018-07-20 | I37: -7986 | J37: -5324 | K37: -13310 | L37: -13310 | M37: -0.08333333333
G38: =IF(G37>=$B$9*12,"",G37+1) -> 38 | H38: 2018-08-19 | I38: -7986 | J38: -5324 | K38: -13310 | L38: -13310 | M38: -0.1666666667
G39: =IF(G38>=$B$9*12,"",G38+1) -> 39 | H39: 2018-09-18 | I39: -7986 | J39: -5324 | K39: -13310 | L39: -13310 | M39: -0.25
G40: =IF(G39>=$B$9*12,"",G39+1) -> 40 | H40: 2018-10-18 | I40: -7986 | J40: -5324 | K40: -13310 | L40: -13310 | M40: -0.3333333333
G41: =IF(G40>=$B$9*12,"",G40+1) -> 41 | H41: 2018-11-17 | I41: -7986 | J41: -5324 | K41: -13310 | L41: -13310 | M41: -0.4166666667
G42: =IF(G41>=$B$9*12,"",G41+1) -> 42 | H42: 2018-12-17 | I42: -7986 | J42: -5324 | K42: -13310 | L42: -13310 | M42: -0.5
G43: =IF(G42>=$B$9*12,"",G42+1) -> 43 | H43: 2019-01-16 | I43: -7986 | J43: -5324 | K43: -13310 | L43: -13310 | M43: -0.5833333333
G44: =IF(G43>=$B$9*12,"",G43+1) -> 44 | H44: 2019-02-15 | I44: -7986 | J44: -5324 | K44: -13310 | L44: -13310 | M44: -0.6666666667
G45: =IF(G44>=$B$9*12,"",G44+1) -> 45 | H45: 2019-03-17 | I45: -7986 | J45: -5324 | K45: -13310 | L45: -13310 | M45: -0.75
G46: =IF(G45>=$B$9*12,"",G45+1) -> 46 | H46: 2019-04-16 | I46: -7986 | J46: -5324 | K46: -13310 | L46: -13310 | M46: -0.8333333333
G47: =IF(G46>=$B$9*12,"",G46+1) -> 47 | H47: 2019-05-16 | I47: -7986 | J47: -5324 | K47: -13310 | L47: -13310 | M47: -0.9166666667
G48: =IF(G47>=$B$9*12,"",G47+1) -> 48 | H48: 2019-06-15 | I48: -7986 | J48: -5324 | K48: -13310 | L48: -13310 | M48: 0
G49: =IF(G48>=$B$9*12,"",G48+1) -> 49 | H49: 2019-07-15 | I49: -8784.6 | J49: -5856.4 | K49: -14641 | L49: -14641 | M49: -0.08333333333
G50: =IF(G49>=$B$9*12,"",G49+1) -> 50 | H50: 2019-08-14 | I50: -8784.6 | J50: -5856.4 | K50: -14641 | L50: -14641 | M50: -0.1666666667
G51: =IF(G50>=$B$9*12,"",G50+1) -> 51 | H51: 2019-09-13 | I51: -8784.6 | J51: -5856.4 | K51: -14641 | L51: -14641 | M51: -0.25
G52: =IF(G51>=$B$9*12,"",G51+1) -> 52 | H52: 2019-10-13 | I52: -8784.6 | J52: -5856.4 | K52: -14641 | L52: -14641 | M52: -0.3333333333
G53: =IF(G52>=$B$9*12,"",G52+1) -> 53 | H53: 2019-11-12 | I53: -8784.6 | J53: -5856.4 | K53: -14641 | L53: -14641 | M53: -0.4166666667
G54: =IF(G53>=$B$9*12,"",G53+1) -> 54 | H54: 2019-12-12 | I54: -8784.6 | J54: -5856.4 | K54: -14641 | L54: -14641 | M54: -0.5
G55: =IF(G54>=$B$9*12,"",G54+1) -> 55 | H55: 2020-01-11 | I55: -8784.6 | J55: -5856.4 | K55: -14641 | L55: -14641 | M55: -0.5833333333
G56: =IF(G55>=$B$9*12,"",G55+1) -> 56 | H56: 2020-02-10 | I56: -8784.6 | J56: -5856.4 | K56: -14641 | L56: -14641 | M56: -0.6666666667
G57: =IF(G56>=$B$9*12,"",G56+1) -> 57 | H57: 2020-03-11 | I57: -8784.6 | J57: -5856.4 | K57: -14641 | L57: -14641 | M57: -0.75
G58: =IF(G57>=$B$9*12,"",G57+1) -> 58 | H58: 2020-04-10 | I58: -8784.6 | J58: -5856.4 | K58: -14641 | L58: -14641 | M58: -0.8333333333
G59: =IF(G58>=$B$9*12,"",G58+1) -> 59 | H59: 2020-05-10 | I59: -8784.6 | J59: -5856.4 | K59: -14641 | L59: -14641 | M59: -0.9166666667
G60: =IF(G59>=$B$9*12,"",G59+1) -> 60 | H60: 2020-06-09 | I60: -8784.6 | J60: -5856.4 | K60: -14641 | L60: -14641 | M60: 0
G61: =IF(G60>=$B$9*12,"",G60+1) -> 61 | H61: 2020-07-09 | I61: -9663.06 | J61: -6442.04 | K61: -16105.1 | L61: -16105.1 | M61: -0.08333333333
G62: =IF(G61>=$B$9*12,"",G61+1) -> 62 | H62: 2020-08-08 | I62: -9663.06 | J62: -6442.04 | K62: -16105.1 | L62: -16105.1 | M62: -0.1666666667
G63: =IF(G62>=$B$9*12,"",G62+1) -> 63 | H63: 2020-09-07 | I63: -9663.06 | J63: -6442.04 | K63: -16105.1 | L63: -16105.1 | M63: -0.25
G64: =IF(G63>=$B$9*12,"",G63+1) -> 64 | H64: 2020-10-07 | I64: -9663.06 | J64: -6442.04 | K64: -16105.1 | L64: -16105.1 | M64: -0.3333333333
G65: =IF(G64>=$B$9*12,"",G64+1) -> 65 | H65: 2020-11-06 | I65: -9663.06 | J65: -6442.04 | K65: -16105.1 | L65: -16105.1 | M65: -0.4166666667
G66: =IF(G65>=$B$9*12,"",G65+1) -> 66 | H66: 2020-12-06 | I66: -9663.06 | J66: -6442.04 | K66: =IF(H66=0,0,IF(G66<>"",I66+J66,$E$1+$E$2)) -> -16105.1 | L66: =IF(H66=0,0,IF(G66<>"",I66+J66,$E$4)) -> -16105.1 | M66: -0.5
G67: =IF(G66>=$B$9*12,"",G66+1) -> 67 | H67: =IF(G66<>"",H66+30,0) -> 2021-01-05 | I67: -9663.06 | J67: =IF(H67=0,0,IF(G67<>"",IF(M66=0,J66*(1+$B$6),J66),$E$2)) -> -6442.04 | K67: -16105.1 | L67: -16105.1 | M67: =IF(G66>=$B$9*12,"",INT(G67/12)-(G67/12)) -> -0.5833333333
G68: =IF(G67>=$B$9*12,"",G67+1) -> 68 | H68: 2021-02-04 | I68: -9663.06 | J68: -6442.04 | K68: -16105.1 | L68: -16105.1 | M68: -0.6666666667
G69: =IF(G68>=$B$9*12,"",G68+1) -> 69 | H69: 2021-03-06 | I69: -9663.06 | J69: -6442.04 | K69: -16105.1 | L69: -16105.1 | M69: -0.75
G70: =IF(G69>=$B$9*12,"",G69+1) -> 70 | H70: 2021-04-05 | I70: -9663.06 | J70: -6442.04 | K70: -16105.1 | L70: -16105.1 | M70: -0.8333333333
G71: =IF(G70>=$B$9*12,"",G70+1) -> 71 | H71: 2021-05-05 | I71: -9663.06 | J71: -6442.04 | K71: -16105.1 | L71: -16105.1 | M71: -0.9166666667
G72: =IF(G71>=$B$9*12,"",G71+1) -> 72 | H72: 2021-06-04 | I72: -9663.06 | J72: -6442.04 | K72: -16105.1 | L72: -16105.1 | M72: 0
G73: =IF(G72>=$B$9*12,"",G72+1) -> 73 | H73: 2021-07-04 | I73: -10629.366 | J73: -7086.244 | K73: -17715.61 | L73: -17715.61 | M73: -0.08333333333
G74: =IF(G73>=$B$9*12,"",G73+1) -> 74 | H74: 2021-08-03 | I74: -10629.366 | J74: -7086.244 | K74: -17715.61 | L74: -17715.61 | M74: -0.1666666667
G75: =IF(G74>=$B$9*12,"",G74+1) -> 75 | H75: 2021-09-02 | I75: -10629.366 | J75: -7086.244 | K75: -17715.61 | L75: -17715.61 | M75: -0.25
G76: =IF(G75>=$B$9*12,"",G75+1) -> 76 | H76: 2021-10-02 | I76: -10629.366 | J76: -7086.244 | K76: -17715.61 | L76: -17715.61 | M76: -0.3333333333
G77: =IF(G76>=$B$9*12,"",G76+1) -> 77 | H77: 2021-11-01 | I77: -10629.366 | J77: -7086.244 | K77: -17715.61 | L77: -17715.61 | M77: -0.4166666667
G78: =IF(G77>=$B$9*12,"",G77+1) -> 78 | H78: 2021-12-01 | I78: -10629.366 | J78: -7086.244 | K78: -17715.61 | L78: -17715.61 | M78: -0.5
G79: =IF(G78>=$B$9*12,"",G78+1) -> 79 | H79: 2021-12-31 | I79: =IF(H79=0,0,IF(G79<>"",IF(M78=0,I78*(1+$B$6),I78),$E$1)) -> -10629.366 | J79: -7086.244 | K79: -17715.61 | L79: -17715.61 | M79: -0.5833333333
G80: =IF(G79>=$B$9*12,"",G79+1) -> 80 | H80: 2022-01-30 | I80: -10629.366 | J80: -7086.244 | K80: -17715.61 | L80: -17715.61 | M80: -0.6666666667
G81: =IF(G80>=$B$9*12,"",G80+1) -> 81 | H81: 2022-03-01 | I81: -10629.366 | J81: -7086.244 | K81: -17715.61 | L81: -17715.61 | M81: -0.75
G82: =IF(G81>=$B$9*12,"",G81+1) -> 82 | H82: 2022-03-31 | I82: -10629.366 | J82: -7086.244 | K82: -17715.61 | L82: -17715.61 | M82: -0.8333333333
G83: =IF(G82>=$B$9*12,"",G82+1) -> 83 | H83: 2022-04-30 | I83: -10629.366 | J83: -7086.244 | K83: -17715.61 | L83: -17715.61 | M83: -0.9166666667
G84: =IF(G83>=$B$9*12,"",G83+1) -> 84 | H84: 2022-05-30 | I84: -10629.366 | J84: -7086.244 | K84: -17715.61 | L84: -17715.61 | M84: 0
G85: =IF(G84>=$B$9*12,"",G84+1) -> 85 | H85: 2022-06-29 | I85: -11692.3026 | J85: -7794.8684 | K85: -19487.171 | L85: -19487.171 | M85: -0.08333333333
G86: =IF(G85>=$B$9*12,"",G85+1) -> 86 | H86: 2022-07-29 | I86: -11692.3026 | J86: -7794.8684 | K86: -19487.171 | L86: -19487.171 | M86: -0.1666666667
G87: =IF(G86>=$B$9*12,"",G86+1) -> 87 | H87: 2022-08-28 | I87: -11692.3026 | J87: -7794.8684 | K87: -19487.171 | L87: -19487.171 | M87: -0.25
G88: =IF(G87>=$B$9*12,"",G87+1) -> 88 | H88: 2022-09-27 | I88: -11692.3026 | J88: -7794.8684 | K88: -19487.171 | L88: -19487.171 | M88: -0.3333333333
G89: =IF(G88>=$B$9*12,"",G88+1) -> 89 | H89: 2022-10-27 | I89: -11692.3026 | J89: -7794.8684 | K89: -19487.171 | L89: -19487.171 | M89: -0.4166666667
G90: =IF(G89>=$B$9*12,"",G89+1) -> 90 | H90: 2022-11-26 | I90: -11692.3026 | J90: -7794.8684 | K90: -19487.171 | L90: -19487.171 | M90: -0.5
G91: =IF(G90>=$B$9*12,"",G90+1) -> 91 | H91: 2022-12-26 | I91: -11692.3026 | J91: -7794.8684 | K91: -19487.171 | L91: -19487.171 | M91: -0.5833333333
G92: =IF(G91>=$B$9*12,"",G91+1) -> 92 | H92: 2023-01-25 | I92: -11692.3026 | J92: -7794.8684 | K92: -19487.171 | L92: -19487.171 | M92: -0.6666666667
G93: =IF(G92>=$B$9*12,"",G92+1) -> 93 | H93: 2023-02-24 | I93: -11692.3026 | J93: -7794.8684 | K93: -19487.171 | L93: -19487.171 | M93: -0.75
G94: =IF(G93>=$B$9*12,"",G93+1) -> 94 | H94: 2023-03-26 | I94: -11692.3026 | J94: -7794.8684 | K94: -19487.171 | L94: -19487.171 | M94: -0.8333333333
G95: =IF(G94>=$B$9*12,"",G94+1) -> 95 | H95: 2023-04-25 | I95: -11692.3026 | J95: -7794.8684 | K95: -19487.171 | L95: -19487.171 | M95: -0.9166666667
G96: =IF(G95>=$B$9*12,"",G95+1) -> 96 | H96: 2023-05-25 | I96: -11692.3026 | J96: -7794.8684 | K96: -19487.171 | L96: -19487.171 | M96: 0
G97: =IF(G96>=$B$9*12,"",G96+1) -> 97 | H97: 2023-06-24 | I97: -12861.53286 | J97: -8574.35524 | K97: -21435.8881 | L97: -21435.8881 | M97: -0.08333333333
G98: =IF(G97>=$B$9*12,"",G97+1) -> 98 | H98: 2023-07-24 | I98: -12861.53286 | J98: -8574.35524 | K98: -21435.8881 | L98: -21435.8881 | M98: -0.1666666667
G99: =IF(G98>=$B$9*12,"",G98+1) -> 99 | H99: 2023-08-23 | I99: -12861.53286 | J99: -8574.35524 | K99: -21435.8881 | L99: -21435.8881 | M99: -0.25
G100: =IF(G99>=$B$9*12,"",G99+1) -> 100 | H100: 2023-09-22 | I100: -12861.53286 | J100: -8574.35524 | K100: -21435.8881 | L100: -21435.8881 | M100: -0.3333333333
G101: =IF(G100>=$B$9*12,"",G100+1) -> 101 | H101: 2023-10-22 | I101: -12861.53286 | J101: -8574.35524 | K101: -21435.8881 | L101: -21435.8881 | M101: -0.4166666667
G102: =IF(G101>=$B$9*12,"",G101+1) -> 102 | H102: 2023-11-21 | I102: -12861.53286 | J102: -8574.35524 | K102: -21435.8881 | L102: -21435.8881 | M102: -0.5
G103: =IF(G102>=$B$9*12,"",G102+1) -> 103 | H103: 2023-12-21 | I103: -12861.53286 | J103: -8574.35524 | K103: -21435.8881 | L103: -21435.8881 | M103: -0.5833333333
G104: =IF(G103>=$B$9*12,"",G103+1) -> 104 | H104: 2024-01-20 | I104: -12861.53286 | J104: -8574.35524 | K104: -21435.8881 | L104: -21435.8881 | M104: -0.6666666667
G105: =IF(G104>=$B$9*12,"",G104+1) -> 105 | H105: 2024-02-19 | I105: -12861.53286 | J105: -8574.35524 | K105: -21435.8881 | L105: -21435.8881 | M105: -0.75
G106: =IF(G105>=$B$9*12,"",G105+1) -> 106 | H106: 2024-03-20 | I106: -12861.53286 | J106: -8574.35524 | K106: -21435.8881 | L106: -21435.8881 | M106: -0.8333333333
G107: =IF(G106>=$B$9*12,"",G106+1) -> 107 | H107: 2024-04-19 | I107: -12861.53286 | J107: -8574.35524 | K107: -21435.8881 | L107: -21435.8881 | M107: -0.9166666667
G108: =IF(G107>=$B$9*12,"",G107+1) -> 108 | H108: 2024-05-19 | I108: -12861.53286 | J108: -8574.35524 | K108: -21435.8881 | L108: -21435.8881 | M108: 0
G109: =IF(G108>=$B$9*12,"",G108+1) -> 109 | H109: 2024-06-18 | I109: -14147.68615 | J109: -9431.790764 | K109: -23579.47691 | L109: -23579.47691 | M109: -0.08333333333
G110: =IF(G109>=$B$9*12,"",G109+1) -> 110 | H110: 2024-07-18 | I110: -14147.68615 | J110: -9431.790764 | K110: -23579.47691 | L110: -23579.47691 | M110: -0.1666666667
G111: =IF(G110>=$B$9*12,"",G110+1) -> 111 | H111: 2024-08-17 | I111: -14147.68615 | J111: -9431.790764 | K111: -23579.47691 | L111: -23579.47691 | M111: -0.25
G112: =IF(G111>=$B$9*12,"",G111+1) -> 112 | H112: 2024-09-16 | I112: -14147.68615 | J112: -9431.790764 | K112: -23579.47691 | L112: -23579.47691 | M112: -0.3333333333
G113: =IF(G112>=$B$9*12,"",G112+1) -> 113 | H113: 2024-10-16 | I113: -14147.68615 | J113: -9431.790764 | K113: -23579.47691 | L113: -23579.47691 | M113: -0.4166666667
G114: =IF(G113>=$B$9*12,"",G113+1) -> 114 | H114: 2024-11-15 | I114: -14147.68615 | J114: -9431.790764 | K114: -23579.47691 | L114: -23579.47691 | M114: -0.5
G115: =IF(G114>=$B$9*12,"",G114+1) -> 115 | H115: 2024-12-15 | I115: -14147.68615 | J115: -9431.790764 | K115: -23579.47691 | L115: -23579.47691 | M115: -0.5833333333
G116: =IF(G115>=$B$9*12,"",G115+1) -> 116 | H116: 2025-01-14 | I116: -14147.68615 | J116: -9431.790764 | K116: -23579.47691 | L116: -23579.47691 | M116: -0.6666666667
G117: =IF(G116>=$B$9*12,"",G116+1) -> 117 | H117: 2025-02-13 | I117: -14147.68615 | J117: -9431.790764 | K117: -23579.47691 | L117: -23579.47691 | M117: -0.75
G118: =IF(G117>=$B$9*12,"",G117+1) -> 118 | H118: 2025-03-15 | I118: -14147.68615 | J118: -9431.790764 | K118: -23579.47691 | L118: -23579.47691 | M118: -0.8333333333
G119: =IF(G118>=$B$9*12,"",G118+1) -> 119 | H119: 2025-04-14 | I119: -14147.68615 | J119: -9431.790764 | K119: -23579.47691 | L119: -23579.47691 | M119: -0.9166666667
G120: =IF(G119>=$B$9*12,"",G119+1) -> 120 | H120: 2025-05-14 | I120: -14147.68615 | J120: -9431.790764 | K120: -23579.47691 | L120: -23579.47691 | M120: 0
G121: =IF(G120>=$B$9*12,"",G120+1) -> 121 | H121: 2025-06-13 | I121: -15562.45476 | J121: -10374.96984 | K121: -25937.4246 | L121: -25937.4246 | M121: -0.08333333333
G122: =IF(G121>=$B$9*12,"",G121+1) -> 122 | H122: 2025-07-13 | I122: -15562.45476 | J122: -10374.96984 | K122: -25937.4246 | L122: -25937.4246 | M122: -0.1666666667
G123: =IF(G122>=$B$9*12,"",G122+1) -> 123 | H123: 2025-08-12 | I123: -15562.45476 | J123: -10374.96984 | K123: -25937.4246 | L123: -25937.4246 | M123: -0.25
G124: =IF(G123>=$B$9*12,"",G123+1) -> 124 | H124: 2025-09-11 | I124: -15562.45476 | J124: -10374.96984 | K124: -25937.4246 | L124: -25937.4246 | M124: -0.3333333333
G125: =IF(G124>=$B$9*12,"",G124+1) -> 125 | H125: 2025-10-11 | I125: -15562.45476 | J125: -10374.96984 | K125: -25937.4246 | L125: -25937.4246 | M125: -0.4166666667
G126: =IF(G125>=$B$9*12,"",G125+1) -> 126 | H126: 2025-11-10 | I126: -15562.45476 | J126: -10374.96984 | K126: -25937.4246 | L126: -25937.4246 | M126: -0.5
G127: =IF(G126>=$B$9*12,"",G126+1) -> 127 | H127: 2025-12-10 | I127: -15562.45476 | J127: -10374.96984 | K127: -25937.4246 | L127: -25937.4246 | M127: -0.5833333333
G128: =IF(G127>=$B$9*12,"",G127+1) -> 128 | H128: 2026-01-09 | I128: -15562.45476 | J128: -10374.96984 | K128: -25937.4246 | L128: -25937.4246 | M128: -0.6666666667
G129: =IF(G128>=$B$9*12,"",G128+1) -> 129 | H129: 2026-02-08 | I129: -15562.45476 | J129: -10374.96984 | K129: -25937.4246 | L129: -25937.4246 | M129: -0.75
G130: =IF(G129>=$B$9*12,"",G129+1) -> 130 | H130: 2026-03-10 | I130: -15562.45476 | J130: -10374.96984 | K130: =IF(H130=0,0,IF(G130<>"",I130+J130,$E$1+$E$2)) -> -25937.4246 | L130: =IF(H130=0,0,IF(G130<>"",I130+J130,$E$4)) -> -25937.4246 | M130: -0.8333333333
G131: =IF(G130>=$B$9*12,"",G130+1) -> 131 | H131: =IF(G130<>"",H130+30,0) -> 2026-04-09 | I131: -15562.45476 | J131: =IF(H131=0,0,IF(G131<>"",IF(M130=0,J130*(1+$B$6),J130),$E$2)) -> -10374.96984 | K131: -25937.4246 | L131: -25937.4246 | M131: =IF(G130>=$B$9*12,"",INT(G131/12)-(G131/12)) -> -0.9166666667
G132: =IF(G131>=$B$9*12,"",G131+1) -> 132 | H132: 2026-05-09 | I132: -15562.45476 | J132: -10374.96984 | K132: -25937.4246 | L132: -25937.4246 | M132: 0
G133: =IF(G132>=$B$9*12,"",G132+1) -> 133 | H133: 2026-06-08 | I133: -17118.70024 | J133: -11412.46682 | K133: -28531.16706 | L133: -28531.16706 | M133: -0.08333333333
G134: =IF(G133>=$B$9*12,"",G133+1) -> 134 | H134: 2026-07-08 | I134: -17118.70024 | J134: -11412.46682 | K134: -28531.16706 | L134: -28531.16706 | M134: -0.1666666667
G135: =IF(G134>=$B$9*12,"",G134+1) -> 135 | H135: 2026-08-07 | I135: -17118.70024 | J135: -11412.46682 | K135: -28531.16706 | L135: -28531.16706 | M135: -0.25
G136: =IF(G135>=$B$9*12,"",G135+1) -> 136 | H136: 2026-09-06 | I136: -17118.70024 | J136: -11412.46682 | K136: -28531.16706 | L136: -28531.16706 | M136: -0.3333333333
G137: =IF(G136>=$B$9*12,"",G136+1) -> 137 | H137: 2026-10-06 | I137: -17118.70024 | J137: -11412.46682 | K137: -28531.16706 | L137: -28531.16706 | M137: -0.4166666667
G138: =IF(G137>=$B$9*12,"",G137+1) -> 138 | H138: 2026-11-05 | I138: -17118.70024 | J138: -11412.46682 | K138: -28531.16706 | L138: -28531.16706 | M138: -0.5
G139: =IF(G138>=$B$9*12,"",G138+1) -> 139 | H139: 2026-12-05 | I139: -17118.70024 | J139: -11412.46682 | K139: -28531.16706 | L139: -28531.16706 | M139: -0.5833333333
G140: =IF(G139>=$B$9*12,"",G139+1) -> 140 | H140: 2027-01-04 | I140: -17118.70024 | J140: -11412.46682 | K140: -28531.16706 | L140: -28531.16706 | M140: -0.6666666667
G141: =IF(G140>=$B$9*12,"",G140+1) -> 141 | H141: 2027-02-03 | I141: -17118.70024 | J141: -11412.46682 | K141: -28531.16706 | L141: -28531.16706 | M141: -0.75
G142: =IF(G141>=$B$9*12,"",G141+1) -> 142 | H142: 2027-03-05 | I142: -17118.70024 | J142: -11412.46682 | K142: -28531.16706 | L142: -28531.16706 | M142: -0.8333333333
G143: =IF(G142>=$B$9*12,"",G142+1) -> 143 | H143: 2027-04-04 | I143: =IF(H143=0,0,IF(G143<>"",IF(M142=0,I142*(1+$B$6),I142),$E$1)) -> -17118.70024 | J143: -11412.46682 | K143: -28531.16706 | L143: -28531.16706 | M143: -0.9166666667
G144: =IF(G143>=$B$9*12,"",G143+1) -> 144 | H144: 2027-05-04 | I144: -17118.70024 | J144: -11412.46682 | K144: -28531.16706 | L144: -28531.16706 | M144: 0
G145: =IF(G144>=$B$9*12,"",G144+1) ->  | H145: 2027-06-03 | I145: 2871486.409 | J145: 1459313.961 | K145: 4330800.369 | L145: 1028135.556
G146: =IF(G145>=$B$9*12,"",G145+1) ->  | H146: 00:00:00 | I146: 0 | J146: 0 | K146: 0 | L146: 0
G147: =IF(G146>=$B$9*12,"",G146+1) ->  | H147: 00:00:00 | I147: 0 | J147: 0 | K147: 0 | L147: 0
G148: =IF(G147>=$B$9*12,"",G147+1) ->  | H148: 00:00:00 | I148: 0 | J148: 0 | K148: 0 | L148: 0
G149: =IF(G148>=$B$9*12,"",G148+1) ->  | H149: 00:00:00 | I149: 0 | J149: 0 | K149: 0 | L149: 0
G150: =IF(G149>=$B$9*12,"",G149+1) ->  | H150: 00:00:00 | I150: 0 | J150: 0 | K150: 0 | L150: 0
G151: =IF(G150>=$B$9*12,"",G150+1) ->  | H151: 00:00:00 | I151: 0 | J151: 0 | K151: 0 | L151: 0
G152: =IF(G151>=$B$9*12,"",G151+1) ->  | H152: 00:00:00 | I152: 0 | J152: 0 | K152: 0 | L152: 0
G153: =IF(G152>=$B$9*12,"",G152+1) ->  | H153: 00:00:00 | I153: 0 | J153: 0 | K153: 0 | L153: 0
G154: =IF(G153>=$B$9*12,"",G153+1) ->  | H154: 00:00:00 | I154: 0 | J154: 0 | K154: 0 | L154: 0
G155: =IF(G154>=$B$9*12,"",G154+1) ->  | H155: 00:00:00 | I155: 0 | J155: 0 | K155: 0 | L155: 0
G156: =IF(G155>=$B$9*12,"",G155+1) ->  | H156: 00:00:00 | I156: 0 | J156: 0 | K156: 0 | L156: 0
G157: =IF(G156>=$B$9*12,"",G156+1) ->  | H157: 00:00:00 | I157: 0 | J157: 0 | K157: 0 | L157: 0
G158: =IF(G157>=$B$9*12,"",G157+1) ->  | H158: 00:00:00 | I158: 0 | J158: 0 | K158: 0 | L158: 0
G159: =IF(G158>=$B$9*12,"",G158+1) ->  | H159: 00:00:00 | I159: 0 | J159: 0 | K159: 0 | L159: 0
G160: =IF(G159>=$B$9*12,"",G159+1) ->  | H160: 00:00:00 | I160: 0 | J160: 0 | K160: 0 | L160: 0
G161: =IF(G160>=$B$9*12,"",G160+1) ->  | H161: 00:00:00 | I161: 0 | J161: 0 | K161: 0 | L161: 0
G162: =IF(G161>=$B$9*12,"",G161+1) ->  | H162: 00:00:00 | I162: 0 | J162: 0 | K162: 0 | L162: 0
G163: =IF(G162>=$B$9*12,"",G162+1) ->  | H163: 00:00:00 | I163: 0 | J163: 0 | K163: 0 | L163: 0
G164: =IF(G163>=$B$9*12,"",G163+1) ->  | H164: 00:00:00 | I164: 0 | J164: 0 | K164: 0 | L164: 0
G165: =IF(G164>=$B$9*12,"",G164+1) ->  | H165: 00:00:00 | I165: 0 | J165: 0 | K165: 0 | L165: 0
G166: =IF(G165>=$B$9*12,"",G165+1) ->  | H166: 00:00:00 | I166: 0 | J166: 0 | K166: 0 | L166: 0
G167: =IF(G166>=$B$9*12,"",G166+1) ->  | H167: 00:00:00 | I167: 0 | J167: 0 | K167: 0 | L167: 0
G168: =IF(G167>=$B$9*12,"",G167+1) ->  | H168: 00:00:00 | I168: 0 | J168: 0 | K168: 0 | L168: 0
G169: =IF(G168>=$B$9*12,"",G168+1) ->  | H169: 00:00:00 | I169: 0 | J169: 0 | K169: 0 | L169: 0
G170: =IF(G169>=$B$9*12,"",G169+1) ->  | H170: 00:00:00 | I170: 0 | J170: 0 | K170: 0 | L170: 0
G171: =IF(G170>=$B$9*12,"",G170+1) ->  | H171: 00:00:00 | I171: 0 | J171: 0 | K171: 0 | L171: 0
G172: =IF(G171>=$B$9*12,"",G171+1) ->  | H172: 00:00:00 | I172: 0 | J172: 0 | K172: 0 | L172: 0
G173: =IF(G172>=$B$9*12,"",G172+1) ->  | H173: 00:00:00 | I173: 0 | J173: 0 | K173: 0 | L173: 0
G174: =IF(G173>=$B$9*12,"",G173+1) ->  | H174: 00:00:00 | I174: 0 | J174: 0 | K174: 0 | L174: 0
G175: =IF(G174>=$B$9*12,"",G174+1) ->  | H175: 00:00:00 | I175: 0 | J175: 0 | K175: 0 | L175: 0
G176: =IF(G175>=$B$9*12,"",G175+1) ->  | H176: 00:00:00 | I176: 0 | J176: 0 | K176: 0 | L176: 0
G177: =IF(G176>=$B$9*12,"",G176+1) ->  | H177: 00:00:00 | I177: 0 | J177: 0 | K177: 0 | L177: 0
G178: =IF(G177>=$B$9*12,"",G177+1) ->  | H178: 00:00:00 | I178: 0 | J178: 0 | K178: 0 | L178: 0
G179: =IF(G178>=$B$9*12,"",G178+1) ->  | H179: 00:00:00 | I179: 0 | J179: 0 | K179: 0 | L179: 0
G180: =IF(G179>=$B$9*12,"",G179+1) ->  | H180: 00:00:00 | I180: 0 | J180: 0 | K180: 0 | L180: 0
G181: =IF(G180>=$B$9*12,"",G180+1) ->  | H181: 00:00:00 | I181: 0 | J181: 0 | K181: 0 | L181: 0
G182: =IF(G181>=$B$9*12,"",G181+1) ->  | H182: 00:00:00 | I182: 0 | J182: 0 | K182: 0 | L182: 0
G183: =IF(G182>=$B$9*12,"",G182+1) ->  | H183: 00:00:00 | I183: 0 | J183: 0 | K183: 0 | L183: 0
G184: =IF(G183>=$B$9*12,"",G183+1) ->  | H184: 00:00:00 | I184: 0 | J184: 0 | K184: 0 | L184: 0
G185: =IF(G184>=$B$9*12,"",G184+1) ->  | H185: 00:00:00 | I185: 0 | J185: 0 | K185: 0 | L185: 0
G186: =IF(G185>=$B$9*12,"",G185+1) ->  | H186: 00:00:00 | I186: 0 | J186: 0 | K186: 0 | L186: 0
G187: =IF(G186>=$B$9*12,"",G186+1) ->  | H187: 00:00:00 | I187: 0 | J187: 0 | K187: 0 | L187: 0
G188: =IF(G187>=$B$9*12,"",G187+1) ->  | H188: 00:00:00 | I188: 0 | J188: 0 | K188: 0 | L188: 0
G189: =IF(G188>=$B$9*12,"",G188+1) ->  | H189: 00:00:00 | I189: 0 | J189: 0 | K189: 0 | L189: 0
G190: =IF(G189>=$B$9*12,"",G189+1) ->  | H190: 00:00:00 | I190: 0 | J190: 0 | K190: 0 | L190: 0
G191: =IF(G190>=$B$9*12,"",G190+1) ->  | H191: 00:00:00 | I191: 0 | J191: 0 | K191: 0 | L191: 0
G192: =IF(G191>=$B$9*12,"",G191+1) ->  | H192: 00:00:00 | I192: 0 | J192: 0 | K192: 0 | L192: 0
G193: =IF(G192>=$B$9*12,"",G192+1) ->  | H193: 00:00:00 | I193: 0 | J193: 0 | K193: 0 | L193: 0
G194: =IF(G193>=$B$9*12,"",G193+1) ->  | H194: 00:00:00 | I194: 0 | J194: 0 | K194: =IF(H194=0,0,IF(G194<>"",I194+J194,$E$1+$E$2)) -> 0 | L194: =IF(H194=0,0,IF(G194<>"",I194+J194,$E$4)) -> 0
G195: =IF(G194>=$B$9*12,"",G194+1) ->  | H195: =IF(G194<>"",H194+30,0) -> 00:00:00 | I195: 0 | J195: =IF(H195=0,0,IF(G195<>"",IF(M194=0,J194*(1+$B$6),J194),$E$2)) -> 0 | K195: 0 | L195: 0 | M195: =IF(G194>=$B$9*12,"",INT(G195/12)-(G195/12)) -> 
G196: =IF(G195>=$B$9*12,"",G195+1) ->  | H196: 00:00:00 | I196: 0 | J196: 0 | K196: 0 | L196: 0
G197: =IF(G196>=$B$9*12,"",G196+1) ->  | H197: 00:00:00 | I197: 0 | J197: 0 | K197: 0 | L197: 0
G198: =IF(G197>=$B$9*12,"",G197+1) ->  | H198: 00:00:00 | I198: 0 | J198: 0 | K198: 0 | L198: 0
G199: =IF(G198>=$B$9*12,"",G198+1) ->  | H199: 00:00:00 | I199: 0 | J199: 0 | K199: 0 | L199: 0
G200: =IF(G199>=$B$9*12,"",G199+1) ->  | H200: 00:00:00 | I200: 0 | J200: 0 | K200: 0 | L200: 0
... 168 more rows
